bitfinex-derivatives/quotes_ETHF0:USTF0_20260131
["timestamp","ask_amount","ask_price","bid_price","bid_amount"]
[1769856316064,3.77,2655.7,2654.2,0.1644303]
[1769856316758,3.77,2655.7,2654.2,6.93529005]
[1769856317064,3.77,2655.7,2654.3,0.1644303]
[1769856329667,8.63,2655.8,2654.3,0.1644303]
[1769856329868,8.63,2655.8,2654.4,0.16543649]
[1769856330171,8.63,2655.8,2654.5,0.16554859]
[1769856334668,1.26303163,2655.6,2654.5,0.16554859]
[1769856335170,1.26303163,2655.3,2654.3,0.16600195]
[1769856335469,5.02,2655.2,2654.3,0.16600195]
[1769856337188,3.02,2655.2,2654.3,0.16600195]
[1769856338786,3.02,2655.2,2654.2,0.16466843]
[1769856340793,3.02,2655.2,2654.1,0.00283187]
[1769856341392,1.26303163,2655.0,2654.1,0.00283187]
[1769856344391,5.03303163,2655.0,2654.1,0.00283187]
[1769856346091,1.26303163,2654.7,2653.5,0.16438256]
[1769856346287,5.022,2654.6,2653.5,0.16438256]
[1769856346782,1.26303163,2654.4,2653.2,0.16438256]
[1769856346988,1.26303163,2654.4,2653.2,0.16719672]
[1769856363195,3.772,2654.3,2653.2,0.16719672]
[1769856372510,3.772,2654.3,2653.3,0.16889169]
[1769856375011,3.772,2654.3,2653.4,0.16721413]
[1769856376307,3.772,2654.3,2653.5,0.1671262]
[1769856376705,3.772,2654.3,2653.3,0.1671262]
[1769856382310,1.26303163,2654.4,2653.3,0.1671262]
[1769856382516,5.03503163,2654.4,2653.3,0.1671262]
[1769856386922,3.772,2654.4,2653.3,0.1671262]
[1769856406537,3.772,2654.4,2653.4,0.16745409]
[1769856420351,2.25798897,2654.7,2653.4,0.16745409]
[1769856420544,2.25798897,2655.0,2653.6,0.16839142]
[1769856420851,5.05,2654.8,2653.8,0.16839142]
[1769856421751,5.05,2654.8,2653.7,6.77085975]
[1769856421752,3.772,2655.3,2654.2,0.16839142]
[1769856422051,6.16,2655.3,2654.3,0.16839142]
[1769856428252,0.00420279,2655.9,2654.3,0.16839142]
[1769856428853,0.00420279,2655.9,2654.3,0.18868]
[1769856429052,0.00420279,2655.9,2654.4,0.16720999]
[1769856429753,0.00420279,2655.9,2654.4,0.35587999]
[1769856429953,0.00420279,2655.9,2654.6,0.16720999]
[1769856430754,0.00420279,2655.9,2654.7,0.16610966]
[1769856433142,0.00420279,2655.9,2654.7,0.35475966]
[1769856433348,0.00420279,2655.9,2654.8,0.3547931]
[1769856433549,0.00420279,2655.9,2654.9,0.1661531]
[1769856438952,0.00420279,2655.9,2654.9,0.3547931]
[1769856439150,0.00420279,2655.9,2655.0,0.16612159]
[1769856441554,0.00420279,2655.9,2655.0,0.35475159]
[1769856441860,0.00420279,2655.9,2655.1,0.16601467]
[1769856442062,0.00420279,2655.9,2655.1,0.16994206]
[1769856443065,0.00420279,2655.9,2654.7,0.16600812]
[1769856444157,0.00420279,2655.9,2654.7,0.16958315]
[1769856447864,0.00420279,2655.9,2654.7,0.00357503]
[1769856448265,3.86561181,2655.8,2654.7,0.00357503]
[1769856448459,3.86561181,2655.7,2654.7,0.00357503]
[1769856448659,8.769,2655.6,2654.7,0.00357503]
[1769856449865,8.769,2655.6,2654.3,0.16296167]
[1769856450061,3.86938133,2655.5,2653.8,0.16279438]
[1769856450266,1.26431179,2655.3,2653.7,0.16279438]
[1769856450570,3.86938133,2655.2,2653.7,0.16279438]
[1769856450769,3.86869158,2655.1,2653.7,0.16279438]
[1769856450969,3.86869158,2655.0,2653.7,0.16611265]
[1769856451166,8.89969158,2654.9,2653.7,0.16611265]
[1769856451469,5.031,2654.9,2653.7,0.16611265]
[1769856451773,1.26424886,2654.7,2653.7,0.16611265]
[1769856452474,1.26424886,2654.7,2653.7,0.00331827]
[1769856457377,1.26424886,2654.4,2653.7,0.00331827]
[1769856457572,3.77,2654.3,2653.7,0.00331827]
[1769856457770,2.211,2654.2,2653.7,0.00331827]
[1769856457970,2.211,2654.2,2653.4,0.16266843]
[1769856458677,2.211,2654.2,2652.8,1.26424886]
[1769856458877,2.211,2654.2,2652.8,1.26784282]
[1769856460474,2.211,2654.2,2652.9,0.15685271]
[1769856461077,1.26424886,2654.1,2652.9,0.15685271]
[1769856463281,1.26424886,2653.8,2652.8,0.00359396]
[1769856463573,1.26878312,2653.8,2652.8,0.00359396]
[1769856464075,1.26878312,2653.8,2652.8,0.1608539]
[1769856465574,0.00453426,2653.8,2652.8,0.1608539]
[1769856465775,5.026,2653.7,2652.8,0.1608539]
[1769856468080,0.14137331,2653.4,2652.0,1.26424886]
[1769856468372,2.212,2653.3,2652.3,1.26424886]
[1769856469176,2.212,2653.3,2652.3,1.26895294]
[1769856470081,2.212,2653.3,2652.4,0.15573757]
[1769856472778,0.14137331,2653.7,2652.4,0.15573757]
[1769856472983,2.212,2653.6,2652.4,0.15573757]
[1769856478176,2.35337331,2653.6,2652.4,0.15573757]
[1769856480790,2.35337331,2653.6,2652.6,1.26424886]
[1769856480990,0.14137331,2653.6,2652.7,0.15573757]
[1769856490495,0.15149421,2653.3,2652.3,8.28491877]
[1769856490695,1.26424886,2653.4,2652.3,8.28491877]
[1769856490696,0.15149421,2653.1,2652.3,0.00470408]
[1769856495201,0.15149421,2653.1,2652.3,0.14685276]
[1769856495405,4.993,2653.2,2652.4,0.14214868]
[1769856496504,0.15149421,2653.7,2652.7,0.14214868]
[1769856504510,0.15149421,2653.7,2652.5,1.40639754]
[1769856504713,0.15149421,2653.7,2652.6,0.14214868]
[1769856510626,0.15149421,2653.6,2652.4,0.14214868]
[1769856510823,0.15149421,2653.3,2652.3,0.00470408]
[1769856512424,0.15149421,2653.3,2652.3,0.14685276]
[1769856514825,0.15149421,2653.3,2652.3,0.00470408]
[1769856526935,0.15149421,2653.3,2652.3,0.15186779]
[1769856532541,0.15149421,2653.3,2651.9,0.14716371]
[1769856532837,5.985,2653.4,2651.9,0.14716371]
[1769856532838,0.14622212,2653.1,2651.9,0.14716371]
[1769856534538,0.14622212,2652.9,2651.9,0.14716371]
[1769856535127,0.14622212,2652.9,2651.9,0.15085292]
[1769856542237,0.14622212,2652.9,2651.9,0.00368921]
[1769856546040,2.59296109,2653.3,2651.9,0.15085292]
[1769856546238,5.13422212,2653.2,2651.9,0.15085292]
[1769856547240,0.15467363,2653.1,2651.9,0.15085292]
[1769856550349,3.92867363,2653.1,2651.9,0.15085292]
[1769856550552,0.15467363,2653.0,2651.9,0.15085292]
[1769856560950,0.15467363,2653.0,2651.9,0.00368921]
[1769856564649,0.15467363,2653.0,2651.9,0.15779469]
[1769856565759,0.15467363,2653.0,2651.9,0.00368921]
[1769856568764,0.15467363,2653.0,2651.9,0.15779469]
[1769856569570,3.774,2652.9,2651.9,0.15779469]
[1769856569864,0.15467363,2652.8,2651.9,0.15779469]
[1769856570960,0.15467363,2652.8,2651.9,0.00368921]
[1769856573472,0.15467363,2652.8,2651.4,0.15410548]
[1769856573763,0.15467363,2652.6,2651.4,0.15410548]
[1769856573969,0.15467363,2652.4,2651.4,0.15410548]
[1769856574469,0.15467363,2652.4,2651.4,0.15791515]
[1769856575665,0.15467363,2652.3,2651.4,0.15791515]
[1769856576870,4.996,2652.5,2651.4,0.15791515]
[1769856578159,5.29143484,2652.5,2651.4,0.15791515]
[1769856580075,0.31465487,2652.4,2651.4,0.15791515]
[1769856582480,2.905,2652.4,2651.4,0.15791515]
[1769856584178,2.52765487,2652.5,2651.4,0.15791515]
[1769856586378,2.52765487,2652.5,2651.5,0.33388476]
[1769856587481,0.31465487,2652.4,2651.5,0.33388476]
[1769856600697,2.213,2652.5,2651.5,0.33388476]
[1769856600898,1.58095478,2652.7,2651.6,0.33388476]
[1769856601199,5.28065487,2652.6,2651.6,0.33388476]
[1769856601587,0.31465487,2652.5,2651.6,0.33388476]
[1769856601898,5.28065487,2652.6,2651.6,0.33388476]
[1769856602095,0.31465487,2652.5,2651.6,0.33388476]
[1769856608007,0.31465487,2652.5,2651.5,6.77085975]
[1769856608300,0.31465487,2652.5,2651.5,7.22963803]
[1769856608704,0.31465487,2652.5,2651.6,0.45877828]
[1769856621815,0.4807203,2652.3,2651.6,0.45877828]
[1769856639426,5.4977203,2652.3,2651.6,0.45877828]
[1769856639626,5.017,2652.3,2651.6,0.45877828]
[1769856639823,0.59897445,2652.7,2651.7,0.60898205]
[1769856640026,0.59897445,2652.7,2651.8,0.60898205]
[1769856640027,5.61697445,2652.7,2651.8,0.60898205]
[1769856640821,5.018,2652.7,2651.8,0.60898205]
[1769856650236,5.61697445,2652.7,2651.8,0.60898205]
[1769856653643,0.59897445,2652.7,2651.8,0.60898205]
[1769856654344,4.54097445,2652.9,2651.8,0.60898205]
[1769856654639,0.59897445,2652.8,2652.0,0.60898205]
[1769856661340,0.59897445,2652.8,2651.9,6.77085975]
[1769856661540,0.59897445,2652.8,2651.6,8.28021469]
[1769856661740,0.59897445,2652.7,2651.4,0.61279172]
[1769856661947,0.59897445,2652.7,2651.4,0.00380967]
[1769856662544,0.59897445,2652.5,2651.4,0.00380967]
[1769856663939,0.59897445,2652.5,2651.4,0.61279172]
[1769856664146,0.59897445,2652.3,2651.4,0.61279172]
[1769856665140,2.879,2652.4,2651.4,0.61279172]
[1769856665338,0.59897445,2652.5,2651.4,0.61279172]
[1769856692175,0.59897445,2652.5,2651.4,0.00380967]
[1769856692570,0.68476155,2652.3,2651.4,0.00380967]
[1769856693870,0.68476155,2652.3,2651.0,0.62126461]
[1769856694076,0.68476155,2652.1,2650.9,8.9014793]
[1769856694370,0.68476155,2652.1,2650.9,0.62126461]
[1769856694973,0.68476155,2652.1,2650.9,0.62569463]
[1769856697580,0.67587306,2651.9,2650.9,0.62569463]
[1769856697776,2.94062029,2652.6,2651.2,0.70762121]
[1769856697977,0.67587306,2652.6,2651.5,0.70762121]
[1769856698880,0.68061677,2652.6,2651.5,0.70762121]
[1769856704883,0.68372661,2652.5,2651.5,0.70762121]
[1769856706582,0.68372661,2652.5,2651.3,6.74562095]
[1769856706776,1.67051038,2651.4,2650.9,0.00443002]
[1769856706979,2.73204403,2651.6,2650.9,0.71583757]
[1769856707682,0.52490163,2651.5,2650.9,0.71583757]
[1769856715092,0.52490163,2651.5,2650.9,0.00443002]
[1769856715293,0.66697713,2651.3,2650.9,0.00443002]
[1769856715791,1.15146635,2651.4,2650.5,0.71140755]
[1769856715993,1.81844348,2651.4,2650.5,0.71140755]
[1769856716793,1.81844348,2651.4,2650.5,0.71425804]
[1769856721501,0.68371498,2651.3,2650.5,0.71425804]
[1769856724606,1.15146635,2651.4,2650.5,0.71425804]
[1769856724805,2.213,2651.6,2650.5,0.71425804]
[1769856730305,0.68372661,2651.8,2650.5,0.71425804]
[1769856731115,2.214,2651.9,2650.8,0.77978729]
[1769856734117,0.72166703,2652.0,2650.8,0.96870729]
[1769856735111,2.95160601,2652.2,2651.1,0.77978729]
[1769856735316,0.74076586,2652.4,2651.3,0.77978729]
[1769856735514,0.74550957,2652.6,2651.4,0.77978729]
[1769856763237,0.85026065,2652.4,2651.4,0.77978729]
[1769856764338,0.85913898,2652.6,2651.4,0.77978729]
[1769856767238,3.11293095,2653.1,2651.6,0.87483912]
[1769856767539,33.92518217,2653.2,2651.6,0.87483912]
[1769856767540,5.01815415,2653.0,2651.6,0.87483912]
[1769856767743,0.85436868,2653.0,2651.6,0.87483912]
[1769856768339,0.85853211,2653.0,2651.6,0.87483912]
[1769856768842,0.85853211,2653.0,2651.8,0.87483912]
[1769856770746,0.85853211,2653.0,2652.0,0.87483912]
[1769856771747,0.00416343,2653.0,2652.0,1.06367912]
[1769856776455,0.86129377,2653.0,2652.0,1.06367912]
[1769856781257,0.00416343,2653.0,2652.3,0.18882]
[1769856781467,0.85713034,2653.4,2652.4,0.87483912]
[1769856782167,1.84654665,2653.9,2652.6,1.06363912]
[1769856782457,4.33959565,2653.9,2652.6,1.06631694]
[1769856782657,0.85713034,2653.8,2652.6,1.06631694]
[1769856783363,0.85713034,2653.8,2652.8,0.87483912]
[1769856785061,0.85713034,2653.8,2652.8,1.06361912]
[1769856785255,0.004049,2653.9,2653.0,0.87483912]
[1769856785456,0.004049,2653.9,2653.0,1.06360912]
[1769856786357,0.86117934,2653.9,2653.0,1.06360912]
[1769856786560,0.85713034,2653.7,2652.6,0.00267782]
[1769856789161,0.85713034,2653.7,2651.9,1.01287076]
[1769856790158,0.85713034,2653.7,2651.9,1.01607354]
[1769856791066,0.90048184,2653.5,2651.9,1.01607354]
[1769856791563,0.90048184,2653.5,2651.9,0.82722354]
[1769856791763,0.90268651,2653.7,2652.1,1.01286076]
[1769856792368,0.90268651,2653.7,2652.3,0.82402076]
[1769856800771,0.90268651,2653.7,2652.3,1.01284076]
[1769856820291,0.87890629,2653.5,2652.3,1.01284076]
[1769856835506,0.90380608,2653.4,2652.3,1.01284076]
[1769856835701,5.85980608,2653.4,2652.3,1.01284076]
[1769856836907,0.90380608,2653.4,2652.3,1.01284076]
[1769856837107,5.86080608,2653.4,2652.3,1.01284076]
[1769856838309,0.90552273,2653.3,2652.3,1.01284076]
[1769856846008,0.88689492,2653.1,2652.3,0.18882]
[1769856847011,0.88689492,2653.1,2652.3,1.11358119]
[1769856848414,5.84589492,2653.1,2652.3,1.11358119]
[1769856848818,0.89575171,2653.3,2652.3,1.11358119]
[1769856849723,8.48354194,2653.8,2652.3,1.11358119]
[1769856849923,0.89575171,2653.5,2652.3,1.11358119]
[1769856850325,0.89575171,2653.5,2652.5,0.92476119]
[1769856851230,0.89575171,2653.5,2652.8,0.92476119]
[1769856863144,0.89575171,2653.7,2652.8,0.92476119]
[1769856888667,0.89575171,2653.7,2652.3,0.8394976]
[1769856897469,0.004049,2653.9,2652.9,0.8394976]
[1769856897669,5.091,2653.8,2652.9,0.8394976]
[1769856897875,0.88093806,2653.7,2652.9,0.8394976]
[1769856902276,0.86798079,2654.4,2653.1,0.8394976]
[1769856902480,3.12654306,2654.8,2653.6,0.8394976]
[1769856902672,5.103,2654.7,2653.6,0.8394976]
[1769856903279,5.10592545,2654.7,2653.6,0.8394976]
[1769856903684,0.86798079,2654.8,2653.8,0.8394976]
[1769856903976,0.86533422,2655.2,2654.0,0.8394976]
[1769856904175,5.103,2655.1,2654.0,0.8394976]
[1769856904671,5.103,2655.1,2654.1,0.18869]
[1769856904672,5.979522,2655.1,2654.1,0.18869]
[1769856904878,0.88087575,2655.1,2654.2,0.8394976]
[1769856905078,3.52887575,2655.1,2654.2,0.8394976]
[1769856905484,0.88087575,2655.1,2654.2,0.8394976]
[1769856905779,3.09287575,2655.1,2654.2,0.8394976]
[1769856907782,0.88087575,2655.1,2654.2,0.8394976]
[1769856907982,3.09287575,2655.1,2654.2,0.8394976]
[1769856909881,0.88087575,2655.1,2654.2,0.8394976]
[1769856910082,0.82928,2655.5,2654.4,0.860755]
[1769856911180,0.8330072,2655.5,2654.4,0.860755]
[1769856911584,0.8330072,2655.5,2654.4,1.049425]
[1769856913578,0.8330072,2655.5,2654.4,0.18867]
[1769856913777,0.8330072,2655.5,2654.0,0.86501173]
[1769856914888,0.8330072,2655.5,2654.2,0.860755]
[1769856921190,0.8330072,2655.5,2654.4,0.860755]
[1769856925796,0.8330072,2655.5,2654.4,1.049425]
[1769856927789,0.8330072,2655.5,2654.6,0.860755]
[1769856932694,0.0037272,2655.5,2654.6,0.860755]
[1769856938503,0.0037272,2655.5,2654.6,1.049405]
[1769856940598,0.0037272,2655.5,2654.8,0.7849414]
[1769856940800,0.79065238,2655.8,2654.8,0.7849414]
[1769856941701,0.7946647,2655.8,2654.8,0.7849414]
[1769856944208,0.77730474,2655.5,2654.7,0.18865]
[1769856945803,0.77730474,2655.5,2654.7,0.9735914]
[1769856946306,0.77730474,2655.5,2654.7,0.18865]
[1769856949809,0.77730474,2655.5,2654.7,0.9735914]
[1769856951810,0.77133165,2655.8,2654.7,0.9735914]
[1769856955812,0.75465843,2655.4,2654.3,9.02531185]
[1769856956022,0.75465843,2655.4,2654.4,0.7849414]
[1769856958411,0.78460987,2655.1,2654.1,0.9736314]
[1769856960218,5.83083579,2655.3,2654.1,0.9736314]
[1769856960419,0.78683579,2655.3,2654.1,0.9736314]
[1769856960627,5.82783579,2655.5,2654.4,0.7849414]
[1769856960918,5.041,2655.5,2654.7,0.7849414]
[1769856962020,0.78547959,2655.4,2654.5,0.7849414]
[1769856965323,0.78547959,2655.4,2654.3,0.7849414]
[1769856965517,0.75474209,2655.1,2654.1,0.7849414]
[1769856966221,0.74364609,2654.5,2653.8,8.24037045]
[1769856966418,0.74364609,2654.4,2653.2,0.7849414]
[1769856967223,0.74364609,2654.4,2653.2,0.78771571]
[1769856967624,0.74166031,2654.2,2653.2,0.78771571]
[1769856970721,5.049,2654.5,2653.2,0.78771571]
[1769856970923,0.71677646,2654.4,2653.2,0.78771571]
[1769856975522,0.69086742,2654.2,2653.2,0.78771571]
[1769856989242,0.6839583,2654.4,2653.2,0.78771571]
[1769856995351,5.049,2654.5,2653.2,0.78771571]
[1769856995856,5.68387634,2654.5,2653.2,0.78771571]
[1769856999761,0.64427945,2654.4,2653.2,0.78771571]
[1769857032680,5.049,2654.5,2653.2,0.78771571]
[1769857032884,5.049,2654.5,2653.2,0.97646571]
[1769857033378,5.68049108,2654.5,2653.2,0.97646571]
[1769857034280,0.63149108,2654.5,2653.2,0.97646571]
[1769857040891,0.63149108,2654.5,2653.4,0.73425558]
[1769857041086,5.66663021,2654.6,2653.4,0.73425558]
[1769857042195,5.66663021,2654.6,2653.5,0.73425558]
[1769857043284,0.62363021,2654.6,2653.5,0.73425558]
[1769857043791,5.67088783,2654.8,2653.5,0.73425558]
[1769857043991,0.62588783,2654.7,2653.6,0.73425558]
[1769857052203,0.62999009,2654.9,2653.7,0.73425558]
[1769857053205,0.62334387,2654.9,2653.7,0.73425558]
[1769857059007,0.62334387,2654.9,2653.7,0.92297558]
[1769857059310,0.62334387,2654.9,2653.8,0.73919725]
[1769857060208,0.62334387,2654.9,2653.9,0.77378551]
[1769857061711,0.62334387,2654.9,2653.9,0.96249551]
[1769857061912,3.825,2655.0,2653.9,0.96249551]
[1769857062405,4.42610717,2655.0,2653.9,0.96249551]
[1769857063600,4.42610717,2655.0,2654.0,0.77378551]
[1769857065011,3.825,2655.0,2654.0,0.77378551]
[1769857066101,1.26345809,2655.4,2654.0,0.77378551]
[1769857066102,0.59846178,2655.1,2654.0,0.77378551]
[1769857068111,0.59846178,2655.1,2654.0,0.96248551]
[1769857069211,0.59605905,2655.0,2654.0,0.96248551]
[1769857069414,0.59605905,2654.7,2653.8,0.77378551]
[1769857069716,0.59605905,2654.7,2653.6,0.77378551]
[1769857070318,0.59605905,2654.7,2653.6,0.96250551]
[1769857070815,0.59605905,2654.7,2653.9,0.77378551]
[1769857071019,0.60436984,2654.9,2653.9,0.77378551]
[1769857071206,0.60436984,2655.3,2654.2,0.77378551]
[1769857077020,0.60436984,2655.3,2653.9,0.96249551]
[1769857082315,0.59358235,2654.7,2653.7,8.24037045]
[1769857082617,0.59358235,2654.4,2653.7,8.24037045]
[1769857082812,0.59358235,2654.4,2653.4,0.77378551]
[1769857083320,0.59250959,2654.1,2653.2,0.00277431]
[1769857099532,0.57052013,2653.5,2652.7,0.00670842]
[1769857100424,0.57372036,2653.5,2652.7,0.01065395]
[1769857101536,0.57372036,2653.5,2652.7,0.73919325]
[1769857107038,0.58168987,2653.5,2652.7,0.73919325]
[1769857107235,0.00320023,2653.5,2652.7,0.73919325]
[1769857107438,3.772,2653.9,2652.9,0.7285393]
[1769857107639,4.34969973,2653.9,2652.9,0.7285393]
[1769857108435,4.35434233,2653.9,2652.9,0.7285393]
[1769857109740,3.7766426,2653.9,2652.9,0.7285393]
[1769857110436,0.0046426,2653.9,2653.2,0.7285393]
[1769857110642,0.57311014,2654.4,2653.2,0.7285393]
[1769857111841,0.57796479,2654.4,2653.2,0.7285393]
[1769857117047,0.00485465,2654.4,2653.2,0.7285393]
[1769857117449,0.57598156,2654.4,2653.2,0.7285393]
[1769857120249,0.56237305,2653.7,2652.8,0.73199405]
[1769857123257,1.26345809,2653.8,2652.7,0.01065395]
[1769857123258,0.56705973,2653.4,2652.7,0.01065395]
[1769857125158,0.56705973,2653.4,2652.4,0.73199405]
[1769857126152,0.56705973,2653.4,2652.4,0.73525217]
[1769857129756,0.56705973,2653.4,2652.0,0.73199405]
[1769857130856,0.56705973,2653.4,2652.0,0.73655704]
[1769857131458,0.57212176,2653.1,2652.0,0.00456299]
[1769857131657,0.57212176,2652.9,2652.0,0.00456299]
[1769857134056,0.57212176,2652.9,2651.8,0.73199405]
[1769857135061,4.34512176,2652.9,2651.8,0.73643279]
[1769857135261,0.57035635,2652.8,2651.8,0.73643279]
[1769857137163,0.57035635,2652.8,2651.4,0.73199405]
[1769857138263,0.57035635,2652.8,2651.4,0.73651169]
[1769857143168,0.57546769,2652.7,2651.4,0.73651169]
[1769857148172,0.5642109,2652.6,2651.4,0.73651169]
[1769857149777,0.5500093,2652.5,2651.4,0.73651169]
[1769857150071,0.55361583,2652.5,2651.4,0.73651169]
[1769857151170,0.54396671,2652.3,2651.1,0.72299918]
[1769857151371,0.54353929,2652.1,2651.1,0.72299918]
[1769857152174,0.54353929,2652.1,2651.1,0.72624726]
[1769857156081,4.31753929,2652.1,2651.1,0.72624726]
[1769857156382,3.774,2652.1,2651.1,0.72624726]
[1769857157081,4.3131019,2652.1,2651.1,0.72624726]
[1769857157278,0.5391019,2652.0,2651.1,0.72624726]
[1769857159986,3.774,2652.1,2651.1,0.72624726]
[1769857160980,0.55661607,2652.0,2651.1,0.72624726]
[1769857171299,0.58752186,2651.8,2651.1,0.72624726]
[1769857173593,0.58752186,2651.8,2651.1,0.00324808]
[1769857173803,0.58752186,2651.8,2650.9,0.72116179]
[1769857174992,0.58752186,2651.8,2650.9,0.72560873]
[1769857175194,2.84398968,2652.0,2650.9,0.72560873]
[1769857175390,3.99291343,2651.9,2650.9,0.72560873]
[1769857175596,0.59060307,2652.0,2650.9,0.72560873]
[1769857175794,3.99290451,2651.9,2650.9,0.72560873]
[1769857175997,0.59060307,2652.0,2650.9,0.72560873]
[1769857176200,4.58308695,2651.9,2650.9,0.72560873]
[1769857176394,0.59027064,2651.9,2650.9,0.72560873]
[1769857177506,6.61840445,2652.1,2650.9,0.72560873]
[1769857177804,4.58568779,2652.0,2650.9,0.72560873]
[1769857177999,0.59101784,2651.8,2650.9,0.72560873]
[1769857178205,2.84440445,2652.0,2650.9,0.72560873]
[1769857178394,4.5853907,2651.9,2650.9,0.72560873]
[1769857178598,3.99598535,2651.8,2650.9,0.72560873]
[1769857178796,0.58940535,2651.9,2650.9,0.72560873]
[1769857178996,3.99594428,2651.8,2650.9,0.72560873]
[1769857179196,0.58940535,2651.9,2650.9,0.72560873]
[1769857179403,3.99663325,2651.8,2650.9,0.72560873]
[1769857179702,0.58940535,2651.9,2650.9,0.72560873]
[1769857179903,3.99660871,2651.8,2650.9,0.72560873]
[1769857180105,4.36440535,2651.9,2650.9,0.72560873]
[1769857180305,3.99717014,2651.8,2650.9,0.72560873]
[1769857180501,4.36440535,2651.9,2650.9,0.72560873]
[1769857180707,3.99717532,2651.8,2650.9,0.72560873]
[1769857180906,4.36440535,2651.9,2650.9,0.72560873]
[1769857181103,0.62006841,2651.7,2650.9,0.72560873]
[1769857181409,0.62006841,2651.5,2650.9,0.72560873]
[1769857181708,5.012,2651.6,2650.9,0.72560873]
[1769857186605,3.40489451,2652.1,2650.9,0.72560873]
[1769857186811,5.024,2652.0,2651.0,0.72671078]
[1769857201413,5.68389336,2652.0,2651.0,0.72671078]
[1769857201914,0.65989336,2651.9,2651.0,0.72671078]
[1769857215625,0.65687857,2651.7,2650.9,0.00444694]
[1769857229429,1.1515079,2651.0,2650.2,8.24037045]
[1769857229637,1.1515079,2650.7,2649.6,0.74017992]
[1769857230336,3.775,2650.8,2649.6,0.74017992]
[1769857230537,1.1515079,2650.7,2649.6,0.74487544]
[1769857230933,1.1515079,2650.6,2649.6,0.74487544]
[1769857231134,1.15527241,2650.6,2649.6,0.74487544]
[1769857233336,1.15527241,2650.6,2648.5,8.53645761]
[1769857233337,1.1515079,2649.9,2648.5,0.74633179]
[1769857233531,5.99,2649.8,2648.5,0.74633179]
[1769857234234,0.00343471,2649.7,2648.5,0.74908025]
[1769857235141,0.00343471,2649.5,2648.5,0.74908025]
[1769857235341,2.215,2649.4,2648.5,0.74908025]
[1769857235637,5.991,2649.4,2648.5,0.74908025]
[1769857235833,0.00624468,2649.8,2648.5,0.74908025]
[1769857236142,3.37275258,2650.2,2648.7,0.74556844]
[1769857236341,1.1515079,2649.9,2648.7,0.74556844]
[1769857236735,1.1515079,2649.6,2648.7,0.74556844]
[1769857236938,1.1515079,2649.3,2648.5,0.75551021]
[1769857237137,6.1765079,2649.3,2648.5,0.75551021]
[1769857237539,0.00092977,2649.2,2648.5,0.00274846]
[1769857237941,1.15243767,2649.0,2648.5,0.00274846]
[1769857238139,1.15243767,2649.0,2648.2,0.75275058]
[1769857238836,1.1515079,2649.6,2648.2,0.75275058]
[1769857239037,3.777,2649.7,2648.5,0.77167466]
[1769857239244,41.9515079,2650.2,2648.5,0.77167466]
[1769857239433,8.801,2650.1,2648.8,0.77169627]
[1769857239842,1.1515079,2649.9,2648.8,0.77169627]
[1769857241045,1.1515079,2649.5,2648.6,0.77297191]
[1769857242142,1.1515079,2649.2,2648.2,0.00473662]
[1769857242347,3.9815079,2649.2,2648.3,0.77299486]
[1769857243650,2.83,2649.2,2648.3,0.77299486]
[1769857244054,2.83,2649.2,2648.2,0.00473662]
[1769857245752,1.15406319,2648.8,2647.3,0.76914361]
[1769857246057,3.778,2648.7,2647.3,0.76914361]
[1769857246753,0.00315929,2648.7,2647.3,0.77199028]
[1769857249459,1.34630248,2648.7,2647.3,0.77199028]
[1769857251054,1.15406319,2648.3,2647.1,0.7792894]
[1769857251260,5.994,2648.2,2647.1,0.7792894]
[1769857251858,0.18915,2647.7,2646.2,0.77931879]
[1769857252154,2.43128693,2648.4,2646.2,0.78231129]
[1769857252377,3.779,2648.3,2646.2,0.78231129]
[1769857252568,5.995,2648.3,2646.2,0.78231129]
[1769857252965,0.18913,2648.1,2646.2,0.78231129]
[1769857253177,5.995,2648.0,2646.2,0.78231129]
[1769857253982,5.995,2647.9,2646.2,0.78231129]
[1769857254974,0.01830829,2648.1,2646.2,0.78231129]
[1769857255272,0.0204343,2647.9,2646.2,0.78231129]
[1769857258672,5.995,2648.0,2646.2,0.78231129]
[1769857259081,6.02791487,2648.0,2646.2,0.78231129]
[1769857259574,0.03490602,2647.9,2646.2,0.78231129]
[1769857259874,0.03490602,2647.8,2646.2,0.78231129]
[1769857262177,2.217,2647.9,2646.2,0.78231129]
[1769857262371,3.78,2648.4,2646.7,0.75498091]
[1769857262573,0.0583026,2648.7,2646.7,0.75498091]
[1769857262772,2.217,2648.3,2646.7,0.75498091]
[1769857263171,0.0583026,2648.7,2646.8,0.75498091]
[1769857263476,2.217,2648.6,2646.9,0.7549759]
[1769857265081,2.217,2648.6,2647.0,0.74403116]
[1769857266273,2.217,2648.6,2647.2,0.74253836]
[1769857270277,2.217,2648.6,2647.3,0.73670997]
[1769857274586,2.35859929,2648.6,2647.3,0.73670997]
[1769857276289,2.35859929,2648.6,2647.4,0.72343792]
[1769857280593,2.217,2648.6,2647.5,0.72346451]
[1769857280984,2.217,2648.6,2647.5,0.91262451]
[1769857281185,2.217,2648.6,2647.6,0.91262451]
[1769857281388,2.217,2648.6,2647.7,0.72343055]
[1769857282892,0.00315929,2648.7,2647.7,0.72343055]
[1769857285798,0.16193991,2648.7,2647.7,0.72343055]
[1769857291701,0.00315929,2648.7,2647.7,0.72343055]
[1769857292000,0.16994526,2648.7,2647.7,0.72343055]
[1769857295006,0.17734427,2648.5,2647.2,0.7202786]
[1769857295195,0.17734427,2648.3,2647.2,0.7202786]
[1769857295396,0.17870835,2648.1,2647.2,0.7202786]
[1769857302017,4.939,2648.2,2647.2,0.7202786]
[1769857302218,5.13810125,2648.2,2647.2,0.7202786]
[1769857302814,0.19976064,2648.1,2647.2,0.7202786]
[1769857305812,0.20559761,2648.7,2647.2,0.7202786]
[1769857306114,0.20559761,2648.7,2647.5,0.78776749]
[1769857306319,0.20243832,2648.5,2647.5,0.78776749]
[1769857308013,0.20819752,2648.2,2646.9,0.78776749]
[1769857308218,1.36295382,2648.0,2646.9,0.78776749]
[1769857309524,0.20819752,2648.0,2646.9,0.78776749]
[1769857310432,0.19790804,2648.1,2646.9,0.78776749]
[1769857315023,0.19674413,2648.6,2647.2,0.78776749]
[1769857315227,2.217,2648.5,2647.2,0.78776749]
[1769857316038,0.19778896,2648.5,2647.2,0.78776749]
[1769857316236,2.217,2648.6,2647.2,0.78776749]
[1769857316734,0.20487201,2648.6,2647.2,0.78776749]
[1769857316933,0.20487201,2648.6,2647.3,0.78776749]
[1769857320234,1.15791559,2648.7,2647.3,0.78776749]
[1769857320434,0.00315929,2648.7,2647.8,0.78776749]
[1769857325136,0.19370055,2648.6,2647.8,0.78776749]
[1769857326539,0.18995901,2648.2,2647.4,0.78776749]
[1769857326734,1.1547563,2648.3,2647.4,0.78776749]
[1769857326735,1.34195955,2648.0,2647.4,0.78776749]
[1769857326930,0.18720325,2647.9,2646.9,0.7500036]
[1769857327130,0.18720325,2647.6,2646.9,0.7500036]
[1769857328636,0.18720325,2647.6,2646.3,0.7500036]